[Event "Titled Tuesday Blitz February 15 Early 2022"]
[White "Jobava, Baadur"]
[Black "Fedoseev, Vladimir"]
[WhiteFideId "13601520"]
[BlackFideId "24130737"]
[WhiteElo "2617"]
[BlackElo "2726"]
[Result "1-0"]
[Round "10"]
[TimeControl "180+1"]
[Date "2022.02.15"]
[WhiteClock "0:00:09"]
[BlackClock "0:00:01"]

1. b3 {[%clk 0:03:00]}  e5 {[%clk 0:02:58]} 2. Bb2 {[%clk 0:03:01]}  Nc6 {[%clk 0:02:59]} 3. Nf3 {[%clk 0:03:02]}  e4 {[%clk 0:02:52]} 4. Nd4 {[%clk 0:03:02]}  Nxd4 {[%clk 0:02:51]} 5. Bxd4 {[%clk 0:03:03]}  Ne7 {[%clk 0:02:49]} 6. Bb2 {[%clk 0:03:02]}  d5 {[%clk 0:02:45]} 7. e3 {[%clk 0:03:02]}  Nf5 {[%clk 0:02:42]} 8. d3 {[%clk 0:02:57]}  Bb4+ {[%clk 0:02:40]} 9. Nc3 {[%clk 0:02:45]}  d4 {[%clk 0:02:27]} 10. exd4 {[%clk 0:02:19]}  Qxd4 {[%clk 0:02:21]} 11. Qd2 {[%clk 0:02:20]}  e3 {[%clk 0:02:21]} 12. fxe3 {[%clk 0:02:20]}  Nxe3 {[%clk 0:02:05]} 13. a3 {[%clk 0:02:20]}  Ba5 {[%clk 0:01:11]} 14. b4 {[%clk 0:02:13]}  Bb6 {[%clk 0:01:10]} 15. Na4 {[%clk 0:02:02]}  Qh4+ {[%clk 0:01:02]} 16. g3 {[%clk 0:02:02]}  Qe7 {[%clk 0:01:02]} 17. Nxb6 {[%clk 0:01:59]}  axb6 {[%clk 0:01:00]} 18. Kf2 {[%clk 0:01:58]}  Ng4+ {[%clk 0:00:56]} 19. Kg1 {[%clk 0:01:53]}  O-O {[%clk 0:00:57]} 20. Re1 {[%clk 0:01:52]}  Qd6 {[%clk 0:00:57]} 21. Qf4 {[%clk 0:01:44]}  Qxf4 {[%clk 0:00:49]} 22. gxf4 {[%clk 0:01:45]}  Nh6 {[%clk 0:00:50]} 23. Kf2 {[%clk 0:01:38]}  Nf5 {[%clk 0:00:47]} 24. Rg1 {[%clk 0:01:36]}  f6 {[%clk 0:00:45]} 25. Bh3 {[%clk 0:01:32]}  Kf7 {[%clk 0:00:44]} 26. Bg4 {[%clk 0:01:25]}  Bd7 {[%clk 0:00:42]} 27. Bh5+ {[%clk 0:01:25]}  g6 {[%clk 0:00:39]} 28. Bf3 {[%clk 0:01:26]}  Bc6 {[%clk 0:00:26]} 29. Bg4 {[%clk 0:01:27]}  Ng7 {[%clk 0:00:24]} 30. Re3 {[%clk 0:01:21]}  Rfe8 {[%clk 0:00:24]} 31. Rh3 {[%clk 0:01:19]}  h5 {[%clk 0:00:22]} 32. Bd1 {[%clk 0:01:19]}  Nf5 {[%clk 0:00:22]} 33. c4 {[%clk 0:01:04]}  Ba4 {[%clk 0:00:17]} 34. Bf3 {[%clk 0:01:00]}  Bc6 {[%clk 0:00:17]} 35. Bd1 {[%clk 0:01:00]}  Ba4 {[%clk 0:00:17]} 36. Be2 {[%clk 0:01:00]}  Rad8 {[%clk 0:00:16]} 37. Bc3 {[%clk 0:00:41]}  b5 {[%clk 0:00:15]} 38. Bf3 {[%clk 0:00:29]}  bxc4 {[%clk 0:00:15]} 39. dxc4 {[%clk 0:00:28]}  c6 {[%clk 0:00:15]} 40. b5 {[%clk 0:00:26]}  Re3 {[%clk 0:00:10]} 41. Bb4 {[%clk 0:00:21]}  Rdd3 {[%clk 0:00:09]} 42. Re1 {[%clk 0:00:18]}  Rxe1 {[%clk 0:00:07]} 43. Kxe1 {[%clk 0:00:19]}  Rd4 {[%clk 0:00:06]} 44. Be2 {[%clk 0:00:17]}  Rxf4 {[%clk 0:00:05]} 45. Rd3 {[%clk 0:00:16]}  cxb5 {[%clk 0:00:05]} 46. Rd7+ {[%clk 0:00:14]}  Ke6 {[%clk 0:00:04]} 47. Rxb7 {[%clk 0:00:14]}  bxc4 {[%clk 0:00:05]} 48. Rb6+ {[%clk 0:00:14]}  Ke5 {[%clk 0:00:03]} 49. Bc3+ {[%clk 0:00:14]}  Nd4 {[%clk 0:00:03]} 50. Bxc4 {[%clk 0:00:14]}  Ke4 {[%clk 0:00:02]} 51. Rb8 {[%clk 0:00:12]}  Nc2+ {[%clk 0:00:01]} 52. Ke2 {[%clk 0:00:11]}  Nxa3 {[%clk 0:00:01]} 53. Bd3+ {[%clk 0:00:09]}  Kd5 {[%clk 0:00:01]} 54. Ra8 {[%clk 0:00:09]} 1-0


[Site "https://www.chess.com"]

[Event "Titled Tuesday Blitz February 15 Early 2022"]
[White "Jumabayev, Rinat"]
[Black "Hansen, Eric"]
[WhiteFideId "13702661"]
[BlackFideId "2606771"]
[WhiteElo "2561"]
[BlackElo "2568"]
[Result "1-0"]
[Round "10"]
[TimeControl "180+1"]
[Date "2022.02.15"]
[WhiteClock "0:00:08"]
[BlackClock "0:00:02"]

1. e4 {[%clk 0:03:00]}  e5 {[%clk 0:02:53]} 2. Nf3 {[%clk 0:03:01]}  Nc6 {[%clk 0:02:54]} 3. Bc4 {[%clk 0:03:01]}  Bc5 {[%clk 0:02:53]} 4. c3 {[%clk 0:03:01]}  Nf6 {[%clk 0:02:52]} 5. d3 {[%clk 0:03:02]}  a6 {[%clk 0:02:46]} 6. a4 {[%clk 0:03:01]}  Ba7 {[%clk 0:02:46]} 7. O-O {[%clk 0:02:59]}  h6 {[%clk 0:02:43]} 8. b4 {[%clk 0:02:56]}  d6 {[%clk 0:02:43]} 9. Re1 {[%clk 0:02:52]}  O-O {[%clk 0:02:43]} 10. Nbd2 {[%clk 0:02:45]}  Kh8 {[%clk 0:02:35]} 11. Nf1 {[%clk 0:02:18]}  Ng4 {[%clk 0:02:35]} 12. Ra2 {[%clk 0:02:19]}  f5 {[%clk 0:02:35]} 13. h3 {[%clk 0:02:18]}  fxe4 {[%clk 0:02:30]} 14. dxe4 {[%clk 0:02:18]}  Nf6 {[%clk 0:02:25]} 15. a5 {[%clk 0:02:08]}  Qe8 {[%clk 0:02:21]} 16. Ng3 {[%clk 0:02:07]}  Nh5 {[%clk 0:02:14]} 17. Be3 {[%clk 0:01:47]}  Nf4 {[%clk 0:01:54]} 18. Bxa7 {[%clk 0:01:41]}  Nxa7 {[%clk 0:01:42]} 19. Kh2 {[%clk 0:01:28]}  Nb5 {[%clk 0:01:41]} 20. Re3 {[%clk 0:01:27]}  Be6 {[%clk 0:01:34]} 21. Qb3 {[%clk 0:01:18]}  Bd7 {[%clk 0:01:18]} 22. Rd2 {[%clk 0:01:15]}  Qg6 {[%clk 0:01:16]} 23. Qd1 {[%clk 0:01:14]}  Qf6 {[%clk 0:01:10]} 24. Bf1 {[%clk 0:01:01]}  Ne6 {[%clk 0:00:43]} 25. Nf5 {[%clk 0:00:56]}  Nf4 {[%clk 0:00:28]} 26. c4 {[%clk 0:00:56]}  Na7 {[%clk 0:00:27]} 27. c5 {[%clk 0:00:50]}  Bxf5 {[%clk 0:00:16]} 28. exf5 {[%clk 0:00:51]}  Rad8 {[%clk 0:00:16]} 29. cxd6 {[%clk 0:00:49]}  cxd6 {[%clk 0:00:16]} 30. g3 {[%clk 0:00:49]}  Nh5 {[%clk 0:00:15]} 31. Nxe5 {[%clk 0:00:48]}  dxe5 {[%clk 0:00:13]} 32. Rxd8 {[%clk 0:00:49]}  Rxd8 {[%clk 0:00:13]} 33. Qxh5 {[%clk 0:00:49]}  Nc6 {[%clk 0:00:14]} 34. Qg6 {[%clk 0:00:42]}  Nxb4 {[%clk 0:00:12]} 35. Rb3 {[%clk 0:00:36]}  Nc6 {[%clk 0:00:07]} 36. Rxb7 {[%clk 0:00:34]}  Nxa5 {[%clk 0:00:06]} 37. Rb6 {[%clk 0:00:28]}  Qxg6 {[%clk 0:00:03]} 38. fxg6 {[%clk 0:00:29]}  Ra8 {[%clk 0:00:02]} 39. Bxa6 {[%clk 0:00:29]}  e4 {[%clk 0:00:02]} 40. Kg2 {[%clk 0:00:28]}  Kg8 {[%clk 0:00:02]} 41. h4 {[%clk 0:00:29]}  Kf8 {[%clk 0:00:02]} 42. g4 {[%clk 0:00:29]}  Ke7 {[%clk 0:00:02]} 43. h5 {[%clk 0:00:29]}  Kd7 {[%clk 0:00:02]} 44. Bb5+ {[%clk 0:00:27]}  Kc7 {[%clk 0:00:02]} 45. Re6 {[%clk 0:00:27]}  Rb8 {[%clk 0:00:02]} 46. Be2 {[%clk 0:00:27]}  Rb2 {[%clk 0:00:02]} 47. Rxe4 {[%clk 0:00:27]}  Nc6 {[%clk 0:00:02]} 48. Kg3 {[%clk 0:00:27]}  Kd6 {[%clk 0:00:02]} 49. f3 {[%clk 0:00:27]}  Rb3 {[%clk 0:00:02]} 50. Bc4 {[%clk 0:00:27]}  Rc3 {[%clk 0:00:03]} 51. Bf7 {[%clk 0:00:26]}  Ne5 {[%clk 0:00:03]} 52. Rf4 {[%clk 0:00:23]}  Rc1 {[%clk 0:00:03]} 53. Rf5 {[%clk 0:00:23]}  Rg1+ {[%clk 0:00:03]} 54. Kf2 {[%clk 0:00:24]}  Rc1 {[%clk 0:00:02]} 55. Kg2 {[%clk 0:00:24]}  Rc2+ {[%clk 0:00:02]} 56. Kg3 {[%clk 0:00:25]}  Rc1 {[%clk 0:00:03]} 57. Bg8 {[%clk 0:00:25]}  Rg1+ {[%clk 0:00:03]} 58. Kf2 {[%clk 0:00:25]}  Rc1 {[%clk 0:00:03]} 59. Kg2 {[%clk 0:00:22]}  Rc2+ {[%clk 0:00:03]} 60. Kg3 {[%clk 0:00:22]}  Rc1 {[%clk 0:00:03]} 61. Rf4 {[%clk 0:00:21]}  Rg1+ {[%clk 0:00:03]} 62. Kh2 {[%clk 0:00:22]}  Rd1 {[%clk 0:00:03]} 63. Kg2 {[%clk 0:00:21]}  Rd2+ {[%clk 0:00:03]} 64. Kg3 {[%clk 0:00:21]}  Rd1 {[%clk 0:00:04]} 65. Re4 {[%clk 0:00:22]}  Rg1+ {[%clk 0:00:04]} 66. Kf2 {[%clk 0:00:22]}  Rc1 {[%clk 0:00:04]} 67. Re3 {[%clk 0:00:21]}  Rc2+ {[%clk 0:00:03]} 68. Kg3 {[%clk 0:00:21]}  Rc1 {[%clk 0:00:02]} 69. Bf7 {[%clk 0:00:15]}  Rd1 {[%clk 0:00:01]} 70. Bb3 {[%clk 0:00:14]}  Rg1+ {[%clk 0:00:01]} 71. Kf2 {[%clk 0:00:14]}  Rb1 {[%clk 0:00:02]} 72. Kg2 {[%clk 0:00:13]}  Rb2+ {[%clk 0:00:02]} 73. Kg3 {[%clk 0:00:13]}  Rd2 {[%clk 0:00:02]} 74. f4 {[%clk 0:00:11]}  Nc6 {[%clk 0:00:03]} 75. Bc4 {[%clk 0:00:09]}  Rc2 {[%clk 0:00:02]} 76. Bf1 {[%clk 0:00:08]}  Rc1 {[%clk 0:00:02]} 77. Bg2 {[%clk 0:00:07]}  Nd4 {[%clk 0:00:02]} 78. f5 {[%clk 0:00:07]}  Rc2 {[%clk 0:00:02]} 79. Be4 {[%clk 0:00:07]}  Rb2 {[%clk 0:00:02]} 80. f6 {[%clk 0:00:08]}  gxf6 {[%clk 0:00:01]} 81. g7 {[%clk 0:00:08]}  Rb8 {[%clk 0:00:02]} 82. Bh7 {[%clk 0:00:08]}  f5 {[%clk 0:00:01]} 83. g8=Q {[%clk 0:00:08]}  Rxg8 {[%clk 0:00:02]} 84. Bxg8 {[%clk 0:00:08]} 1-0


[Site "https://www.chess.com"]

[Event "Titled Tuesday Blitz February 15 Early 2022"]
[White "Khripachenko, Alexander"]
[Black "Goltsev, Dmitry"]
[WhiteFideId "54184975"]
[BlackFideId "24176710"]
[WhiteElo "2177"]
[BlackElo "2273"]
[Result "1-0"]
[Round "10"]
[TimeControl "180+1"]
[Date "2022.02.15"]
[WhiteClock "0:00:15"]
[BlackClock "0:00:08"]

1. e4 {[%clk 0:03:00]}  e6 {[%clk 0:02:59]} 2. d4 {[%clk 0:03:01]}  d5 {[%clk 0:02:59]} 3. Nd2 {[%clk 0:03:01]}  c5 {[%clk 0:02:59]} 4. exd5 {[%clk 0:03:01]}  exd5 {[%clk 0:02:59]} 5. Bb5+ {[%clk 0:03:00]}  Nc6 {[%clk 0:02:58]} 6. Ngf3 {[%clk 0:03:00]}  Nf6 {[%clk 0:02:58]} 7. O-O {[%clk 0:02:59]}  Be7 {[%clk 0:02:58]} 8. dxc5 {[%clk 0:02:59]}  Bxc5 {[%clk 0:02:58]} 9. Nb3 {[%clk 0:03:00]}  Bb6 {[%clk 0:02:58]} 10. Nbd4 {[%clk 0:03:00]}  Bd7 {[%clk 0:02:52]} 11. Re1+ {[%clk 0:03:00]}  Ne4 {[%clk 0:02:52]} 12. Bg5 {[%clk 0:02:52]}  f6 {[%clk 0:02:47]} 13. Be3 {[%clk 0:02:49]}  O-O {[%clk 0:02:46]} 14. Be2 {[%clk 0:02:31]}  Ne5 {[%clk 0:02:41]} 15. c3 {[%clk 0:02:30]}  Rc8 {[%clk 0:02:37]} 16. Qb3 {[%clk 0:02:30]}  Bc6 {[%clk 0:02:31]} 17. Ne6 {[%clk 0:02:29]}  Qd7 {[%clk 0:02:28]} 18. Nxf8 {[%clk 0:02:29]}  Rxf8 {[%clk 0:02:28]} 19. Bxb6 {[%clk 0:02:29]}  axb6 {[%clk 0:02:29]} 20. Nd4 {[%clk 0:02:24]}  f5 {[%clk 0:02:18]} 21. f3 {[%clk 0:02:19]}  Nc5 {[%clk 0:02:14]} 22. Qc2 {[%clk 0:02:19]}  f4 {[%clk 0:02:13]} 23. Rad1 {[%clk 0:02:19]}  Qf7 {[%clk 0:02:10]} 24. Qd2 {[%clk 0:02:12]}  Qh5 {[%clk 0:02:06]} 25. b4 {[%clk 0:02:10]}  Na4 {[%clk 0:01:59]} 26. Ne6 {[%clk 0:01:58]}  Rf6 {[%clk 0:01:56]} 27. Nxf4 {[%clk 0:01:57]}  Qh4 {[%clk 0:01:54]} 28. Nxd5 {[%clk 0:01:41]}  Rg6 {[%clk 0:01:36]} 29. Qf4 {[%clk 0:01:09]}  Qxf4 {[%clk 0:00:46]} 30. Nxf4 {[%clk 0:01:06]}  Rg5 {[%clk 0:00:47]} 31. Ne6 {[%clk 0:00:37]}  Rg6 {[%clk 0:00:45]} 32. Nd4 {[%clk 0:00:35]}  Nxc3 {[%clk 0:00:43]} 33. Nxc6 {[%clk 0:00:33]}  bxc6 {[%clk 0:00:35]} 34. Rd8+ {[%clk 0:00:25]}  Kf7 {[%clk 0:00:35]} 35. Kf2 {[%clk 0:00:25]}  Nd5 {[%clk 0:00:31]} 36. b5 {[%clk 0:00:21]}  Nf4 {[%clk 0:00:20]} 37. Bf1 {[%clk 0:00:20]}  Rg5 {[%clk 0:00:06]} 38. h4 {[%clk 0:00:19]}  Rf5 {[%clk 0:00:04]} 39. g4 {[%clk 0:00:18]}  Nxg4+ {[%clk 0:00:04]} 40. fxg4 {[%clk 0:00:19]}  Nd3+ {[%clk 0:00:04]} 41. Kg3 {[%clk 0:00:19]}  Nxe1 {[%clk 0:00:01]} 42. gxf5 {[%clk 0:00:19]}  c5 {[%clk 0:00:02]} 43. Bc4+ {[%clk 0:00:18]}  Kf6 {[%clk 0:00:02]} 44. Rd1 {[%clk 0:00:17]}  Nc2 {[%clk 0:00:02]} 45. Rd6+ {[%clk 0:00:17]}  Ke5 {[%clk 0:00:02]} 46. Rd5+ {[%clk 0:00:17]}  Ke4 {[%clk 0:00:02]} 47. Rd6 {[%clk 0:00:15]}  Ne3 {[%clk 0:00:03]} 48. Bd3+ {[%clk 0:00:14]}  Ke5 {[%clk 0:00:02]} 49. Rxb6 {[%clk 0:00:13]}  c4 {[%clk 0:00:02]} 50. Re6+ {[%clk 0:00:14]}  Kd4 {[%clk 0:00:02]} 51. Rxe3 {[%clk 0:00:14]}  c3 {[%clk 0:00:01]} 52. Rf3 {[%clk 0:00:14]}  h5 {[%clk 0:00:02]} 53. b6 {[%clk 0:00:13]}  g5 {[%clk 0:00:03]} 54. hxg5 {[%clk 0:00:13]}  c2 {[%clk 0:00:03]} 55. Bxc2 {[%clk 0:00:13]}  Kc5 {[%clk 0:00:03]} 56. b7 {[%clk 0:00:13]}  h4+ {[%clk 0:00:03]} 57. Kf4 {[%clk 0:00:13]}  Kd6 {[%clk 0:00:04]} 58. b8=Q+ {[%clk 0:00:14]}  Ke7 {[%clk 0:00:04]} 59. Re3+ {[%clk 0:00:14]}  Kf7 {[%clk 0:00:05]} 60. Bb3+ {[%clk 0:00:14]}  Kg7 {[%clk 0:00:05]} 61. f6+ {[%clk 0:00:15]}  Kh7 {[%clk 0:00:06]} 62. Qc7+ {[%clk 0:00:14]}  Kg6 {[%clk 0:00:07]} 63. Bc2+ {[%clk 0:00:13]}  Kh5 {[%clk 0:00:07]} 64. Bd1+ {[%clk 0:00:13]}  Kg6 {[%clk 0:00:08]} 65. Qc2+ {[%clk 0:00:13]}  Kf7 {[%clk 0:00:07]} 66. Qh7+ {[%clk 0:00:14]}  Kf8 {[%clk 0:00:07]} 67. Qh6+ {[%clk 0:00:14]}  Kf7 {[%clk 0:00:07]} 68. Qh5+ {[%clk 0:00:14]}  Kf8 {[%clk 0:00:08]} 69. Re8# {[%clk 0:00:15]} 1-0


[Site "https://www.chess.com"]

[Event "Titled Tuesday Blitz February 15 Early 2022"]
[White "Kostiukov, Alexandr"]
[Black "Rakhimgaliyev, Yerlan"]
[WhiteFideId "14108100"]
[BlackFideId "13705148"]
[WhiteElo "2202"]
[BlackElo "2261"]
[Result "1-0"]
[Round "10"]
[TimeControl "180+1"]
[Date "2022.02.15"]
[WhiteClock "0:01:16"]
[BlackClock "0:00:19"]

1. g3 {[%clk 0:02:47]}  Nf6 {[%clk 0:02:58]} 2. Bg2 {[%clk 0:02:46]}  g6 {[%clk 0:02:58]} 3. c4 {[%clk 0:02:46]}  Bg7 {[%clk 0:02:59]} 4. Nf3 {[%clk 0:02:47]}  O-O {[%clk 0:02:59]} 5. O-O {[%clk 0:02:47]}  d6 {[%clk 0:02:58]} 6. d4 {[%clk 0:02:48]}  Nc6 {[%clk 0:02:58]} 7. Nc3 {[%clk 0:02:49]}  a6 {[%clk 0:02:58]} 8. h3 {[%clk 0:02:45]}  Rb8 {[%clk 0:02:57]} 9. Bf4 {[%clk 0:02:42]}  Nh5 {[%clk 0:02:47]} 10. Bg5 {[%clk 0:02:36]}  h6 {[%clk 0:02:47]} 11. Be3 {[%clk 0:02:35]}  e5 {[%clk 0:02:46]} 12. dxe5 {[%clk 0:02:31]}  dxe5 {[%clk 0:02:47]} 13. Qc1 {[%clk 0:02:26]}  Kh7 {[%clk 0:02:46]} 14. Rd1 {[%clk 0:02:26]}  Bd7 {[%clk 0:02:36]} 15. Nd5 {[%clk 0:02:25]}  Qc8 {[%clk 0:02:32]} 16. g4 {[%clk 0:02:22]}  Nf6 {[%clk 0:02:17]} 17. Nxf6+ {[%clk 0:02:19]}  Bxf6 {[%clk 0:02:18]} 18. Bxh6 {[%clk 0:02:18]}  Re8 {[%clk 0:02:17]} 19. Be3 {[%clk 0:02:06]}  b5 {[%clk 0:02:01]} 20. c5 {[%clk 0:02:01]}  e4 {[%clk 0:01:52]} 21. Ng5+ {[%clk 0:02:01]}  Bxg5 {[%clk 0:01:37]} 22. Bxg5 {[%clk 0:02:00]}  f5 {[%clk 0:01:38]} 23. Qf4 {[%clk 0:01:52]}  Ne5 {[%clk 0:01:19]} 24. gxf5 {[%clk 0:01:48]}  Bxf5 {[%clk 0:01:20]} 25. Qh4+ {[%clk 0:01:47]}  Kg8 {[%clk 0:01:20]} 26. Bf6 {[%clk 0:01:46]}  Nf7 {[%clk 0:01:19]} 27. Rd4 {[%clk 0:01:39]}  Qe6 {[%clk 0:01:16]} 28. Rad1 {[%clk 0:01:39]}  e3 {[%clk 0:00:35]} 29. Bd5 {[%clk 0:01:30]}  exf2+ {[%clk 0:00:32]} 30. Kh2 {[%clk 0:01:22]}  f1=Q {[%clk 0:00:28]} 31. Rxf1 {[%clk 0:01:21]}  Qxe2+ {[%clk 0:00:28]} 32. Rf2 {[%clk 0:01:21]}  Qh5 {[%clk 0:00:27]} 33. Qxh5 {[%clk 0:01:19]}  gxh5 {[%clk 0:00:28]} 34. Rxf5 {[%clk 0:01:19]}  Re2+ {[%clk 0:00:29]} 35. Kg3 {[%clk 0:01:18]}  Rbe8 {[%clk 0:00:19]} 36. Bg5 {[%clk 0:01:16]} 1-0


[Site "https://www.chess.com"]

[Event "Titled Tuesday Blitz February 15 Early 2022"]
[White "Krstulovic, Alex"]
[Black "Sahil, Tickoo"]
[WhiteFideId "760056"]
[BlackFideId "5019710"]
[WhiteElo "2193"]
[BlackElo "2099"]
[Result "1-0"]
[Round "10"]
[TimeControl "180+1"]
[Date "2022.02.15"]
[WhiteClock "0:00:29"]
[BlackClock "0:00:10"]

1. e4 {[%clk 0:03:00]}  c5 {[%clk 0:02:58]} 2. Nf3 {[%clk 0:03:00]}  d6 {[%clk 0:02:58]} 3. d4 {[%clk 0:03:01]}  cxd4 {[%clk 0:02:59]} 4. Nxd4 {[%clk 0:03:01]}  Nf6 {[%clk 0:02:59]} 5. Nc3 {[%clk 0:03:02]}  a6 {[%clk 0:02:59]} 6. Be3 {[%clk 0:03:02]}  e5 {[%clk 0:02:59]} 7. Nb3 {[%clk 0:03:02]}  Be7 {[%clk 0:02:59]} 8. f3 {[%clk 0:03:00]}  Be6 {[%clk 0:02:57]} 9. Qd2 {[%clk 0:03:00]}  O-O {[%clk 0:02:57]} 10. O-O-O {[%clk 0:02:55]}  a5 {[%clk 0:02:57]} 11. a4 {[%clk 0:02:47]}  Na6 {[%clk 0:02:56]} 12. g4 {[%clk 0:02:45]}  Nb4 {[%clk 0:02:56]} 13. g5 {[%clk 0:02:43]}  Nd7 {[%clk 0:02:54]} 14. Nd5 {[%clk 0:02:42]}  Nxd5 {[%clk 0:02:38]} 15. exd5 {[%clk 0:02:43]}  Bf5 {[%clk 0:02:39]} 16. h4 {[%clk 0:02:38]}  Nb6 {[%clk 0:02:03]} 17. Bb5 {[%clk 0:02:37]}  Qc7 {[%clk 0:02:02]} 18. c3 {[%clk 0:02:37]}  Nc4 {[%clk 0:01:58]} 19. Qe2 {[%clk 0:02:32]}  Nxe3 {[%clk 0:01:52]} 20. Qxe3 {[%clk 0:02:33]}  Rfc8 {[%clk 0:01:49]} 21. h5 {[%clk 0:02:28]}  Bd7 {[%clk 0:01:34]} 22. g6 {[%clk 0:02:25]}  Bxb5 {[%clk 0:01:23]} 23. gxf7+ {[%clk 0:02:22]}  Kf8 {[%clk 0:01:21]} 24. axb5 {[%clk 0:02:22]}  a4 {[%clk 0:01:20]} 25. Nd2 {[%clk 0:02:14]}  a3 {[%clk 0:01:21]} 26. c4 {[%clk 0:01:30]}  axb2+ {[%clk 0:01:00]} 27. Kxb2 {[%clk 0:01:31]}  Bf6 {[%clk 0:00:49]} 28. Qe4 {[%clk 0:01:20]}  Qa5 {[%clk 0:00:44]} 29. Kc2 {[%clk 0:01:06]}  Qb4 {[%clk 0:00:29]} 30. Kd3 {[%clk 0:01:04]}  Ra3+ {[%clk 0:00:28]} 31. Ke2 {[%clk 0:01:04]}  Ra2 {[%clk 0:00:25]} 32. Qxh7 {[%clk 0:00:49]}  Qxc4+ {[%clk 0:00:20]} 33. Kf2 {[%clk 0:00:41]}  Qd4+ {[%clk 0:00:20]} 34. Kg3 {[%clk 0:00:40]}  Qf4+ {[%clk 0:00:19]} 35. Kh3 {[%clk 0:00:40]}  Ke7 {[%clk 0:00:17]} 36. Qe4 {[%clk 0:00:35]}  Qg5 {[%clk 0:00:14]} 37. Qg4 {[%clk 0:00:32]}  Qe3 {[%clk 0:00:13]} 38. Qe6+ {[%clk 0:00:31]}  Kd8 {[%clk 0:00:11]} 39. f8=Q+ {[%clk 0:00:29]}  Kc7 {[%clk 0:00:10]} 40. Qfxd6# {[%clk 0:00:29]} 1-0


[Site "https://www.chess.com"]

[Event "Titled Tuesday Blitz February 15 Early 2022"]
[White "Krysa, Leandro"]
[Black "Martin Carmona, Gaston Manuel"]
[WhiteFideId "116807"]
[BlackFideId "22284567"]
[WhiteElo "2490"]
[BlackElo "2161"]
[Result "0-1"]
[Round "10"]
[TimeControl "180+1"]
[Date "2022.02.15"]
[WhiteClock "0:00:03"]
[BlackClock "0:00:13"]

1. e4 {[%clk 0:03:00]}  c5 {[%clk 0:02:57]} 2. Nf3 {[%clk 0:03:01]}  d6 {[%clk 0:02:53]} 3. d4 {[%clk 0:03:00]}  Nf6 {[%clk 0:02:53]} 4. dxc5 {[%clk 0:02:57]}  Nxe4 {[%clk 0:02:53]} 5. cxd6 {[%clk 0:02:56]}  Nc6 {[%clk 0:02:54]} 6. Be3 {[%clk 0:02:51]}  Nxd6 {[%clk 0:02:51]} 7. c4 {[%clk 0:02:51]}  Bf5 {[%clk 0:02:39]} 8. Nc3 {[%clk 0:02:49]}  e6 {[%clk 0:02:39]} 9. Rc1 {[%clk 0:02:48]}  Be7 {[%clk 0:02:39]} 10. Be2 {[%clk 0:02:43]}  O-O {[%clk 0:02:39]} 11. O-O {[%clk 0:02:43]}  Ne4 {[%clk 0:02:33]} 12. Nxe4 {[%clk 0:02:33]}  Bxe4 {[%clk 0:02:34]} 13. Qb3 {[%clk 0:02:33]}  Qc7 {[%clk 0:02:25]} 14. Rfd1 {[%clk 0:02:26]}  Rfd8 {[%clk 0:02:25]} 15. Qb5 {[%clk 0:02:20]}  Bf6 {[%clk 0:02:20]} 16. b3 {[%clk 0:02:13]}  Bb2 {[%clk 0:02:15]} 17. Rxd8+ {[%clk 0:02:13]}  Rxd8 {[%clk 0:02:16]} 18. Rd1 {[%clk 0:02:09]}  Rxd1+ {[%clk 0:02:11]} 19. Bxd1 {[%clk 0:02:10]}  Qd7 {[%clk 0:02:10]} 20. Be2 {[%clk 0:02:08]}  Bd3 {[%clk 0:02:08]} 21. Bxd3 {[%clk 0:01:54]}  Qxd3 {[%clk 0:02:09]} 22. h3 {[%clk 0:01:55]}  Qd1+ {[%clk 0:01:49]} 23. Kh2 {[%clk 0:01:53]}  Qd7 {[%clk 0:01:50]} 24. g3 {[%clk 0:01:38]}  f6 {[%clk 0:01:47]} 25. h4 {[%clk 0:01:35]}  Qd1 {[%clk 0:01:30]} 26. Kg2 {[%clk 0:01:31]}  Qd7 {[%clk 0:01:25]} 27. Bxa7 {[%clk 0:01:31]}  g6 {[%clk 0:01:09]} 28. Be3 {[%clk 0:01:27]}  Kf7 {[%clk 0:01:07]} 29. a4 {[%clk 0:01:13]}  Bc3 {[%clk 0:01:06]} 30. h5 {[%clk 0:00:55]}  g5 {[%clk 0:01:05]} 31. h6 {[%clk 0:00:55]}  Kg6 {[%clk 0:01:04]} 32. Nxg5 {[%clk 0:00:53]}  fxg5 {[%clk 0:00:59]} 33. Qxg5+ {[%clk 0:00:53]}  Kf7 {[%clk 0:00:59]} 34. Qf4+ {[%clk 0:00:39]}  Bf6 {[%clk 0:00:57]} 35. Qe4 {[%clk 0:00:34]}  Kg8 {[%clk 0:00:53]} 36. g4 {[%clk 0:00:35]}  Ne5 {[%clk 0:00:46]} 37. g5 {[%clk 0:00:32]}  Bh8 {[%clk 0:00:43]} 38. Bd4 {[%clk 0:00:27]}  Nf7 {[%clk 0:00:27]} 39. Bxh8 {[%clk 0:00:24]}  Kxh8 {[%clk 0:00:28]} 40. f4 {[%clk 0:00:18]}  Kg8 {[%clk 0:00:27]} 41. Qe3 {[%clk 0:00:16]}  Qc6+ {[%clk 0:00:26]} 42. Qf3 {[%clk 0:00:15]}  Qb6 {[%clk 0:00:26]} 43. Kh3 {[%clk 0:00:14]}  Nd6 {[%clk 0:00:25]} 44. Qd3 {[%clk 0:00:06]}  Qc7 {[%clk 0:00:25]} 45. Qd4 {[%clk 0:00:04]}  Nf5 {[%clk 0:00:24]} 46. Qe5 {[%clk 0:00:05]}  Qc6 {[%clk 0:00:14]} 47. Kh2 {[%clk 0:00:04]}  Kf7 {[%clk 0:00:13]} 48. Qf6+ {[%clk 0:00:04]}  Kg8 {[%clk 0:00:12]} 49. Qd8+ {[%clk 0:00:03]}  Kf7 {[%clk 0:00:13]} 50. Qh8 {[%clk 0:00:03]}  Kg6 {[%clk 0:00:12]} 51. Qg8+ {[%clk 0:00:04]}  Kh5 {[%clk 0:00:13]} 52. Qxh7 {[%clk 0:00:04]}  Kg4 {[%clk 0:00:13]} 53. Qf7 {[%clk 0:00:02]}  Qf3 {[%clk 0:00:13]} 54. Qxe6 {[%clk 0:00:03]}  Qf2+ {[%clk 0:00:13]} 55. Kh1 {[%clk 0:00:03]}  Kg3 {[%clk 0:00:13]} 0-1


[Site "https://www.chess.com"]